Cogmind - Beta 14 @@@ ROGUE MODE // 2024.08.10 @ 16:45:19 Player: saltine Result: Destroyed by Y-54 Guardian with Gatling Laser Performance ------------- Evolutions (0) 0 Regions Visited (3) 600 Robots Destroyed (16) 80 Value Destroyed (414) 414 Prototype IDs (0) 0 Alien Tech Used (0) 0 Bonus (0) 0 TOTAL SCORE: 1094 Bonus ------- None Cogmind --------- Core Integrity 0/250 Matter 223/300 Energy 125/125 System Corruption 0% Temperature Danger (405) Movement Core (800) Ox15 Location -7/Recycling Parts ------- > --- POWER (1) -------- Light Ion Engine > --- PROPULSION (2) --- (None) > --- UTILITY (2) ------ High-capacity Storage Unit > --- WEAPON (2) ------- Beam Cannon Assault Rifle > --- INVENTORY (20) --- Compact Wheel Heavy Riot Gun Medium Laser Small Laser Subdweller Laser Grenade Launcher Grenade Launcher Peak State ------------ > --- POWER ------------ (None) > --- PROPULSION ------- Light Treads Light Treads > --- UTILITY ---------- High-capacity Storage Unit > --- WEAPON ----------- Gatling Laser Battle Rifle > --- INVENTORY -------- Light Ion Engine Wheel Compact Wheel Heavy Riot Gun Medium Laser Small Laser Subdweller Laser Beam Cannon Assault Rifle Grenade Launcher Grenade Launcher [Rating: 10] Favorites ----------- Power Ion Engine Engine Ion Engine Propulsion Light Treads Treads Light Treads Leg Aluminum Leg Wheel Wheel Utility High-capacity Storage Unit Storage High-capacity Storage Unit Weapon Medium Laser Energy Gun Medium Laser Energy Cannon Beam Cannon Ballistic Gun Light Assault Rifle Launcher Grenade Launcher Build | -11 -10 -10 -7 ------- Run | Yrd Mat Sub Rec Slots Evolved . | . . . . Power . | . . . . Propulsion . | . . . . Utility . | . . . . Weapon . | . . . . Parts Attached 15 | . 6 3 6 Power 1 | . . . 1 Engine 1 | . . . 1 Core . | . . . . Reactor . | . . . . Propulsion 3 | . 2 . 1 Treads 2 | . 2 . . Leg . | . . . . Wheel 1 | . . . 1 Hover . | . . . . Flight . | . . . . Utility 1 | . 1 . . Device . | . . . . Storage 1 | . 1 . . Processor . | . . . . Hackware . | . . . . Protection . | . . . . Artifact . | . . . . Weapon 10 | . 3 3 4 Energy Gun 2 | . 1 . 1 Energy Cannon 2 | . . 1 1 Ballistic Gun 4 | . 1 1 2 Ballistic Cannon . | . . . . Launcher 2 | . 1 1 . Special Weapon . | . . . . Impact Weapon . | . . . . Slashing Weapon . | . . . . Piercing Weapon . | . . . . Special Melee Weapon . | . . . . Unidentified Prototypes . | . . . . Parts Lost 7 | . . 2 5 Power 1 | . . 1 . Propulsion 3 | . . . 3 Utility . | . . . . Weapon 3 | . . 1 2 Highest Loss Streak 5 | . . 2 5 To Critical Strikes . | . . . . Average Slot Usage (%) 83 | . 85 83 67 Engine 13 | . 14 12 5 Treads 26 | . 26 28 15 Storage 14 | . 14 14 14 Energy Gun 13 | . 14 12 5 Ballistic Gun 13 | . 13 14 14 Peak Build Rating 10 | . 7 7 10 Average Rating 6 | . 6 6 7 On Entrance 6 | 6 6 6 6 Naked Turns . | . . . . Heaviest Build 50 | 12 48 50 46 Greatest Support 40 | 20 40 40 40 Greatest Overweight (x) 1 | . 1 1 1 Average Overweight (x) . | . . 1 1 Largest Inventory Capacity 20 | . 20 20 20 Average Capacity 19 | . 18 20 20 Most Carried 11 | . 8 11 11 Average Carried 8 | . 7 9 9 Final Capacity 20 | 8 20 20 20 Final Carried 10 | 6 8 10 7 Class Distribution -------------------- 100% | Mutant Dominant Class ---------------- Mutant | -10/Materials Mutant | -10/Subcaves Mutant | -7/Recycling Resources | -11 -10 -10 -7 ----------- Run | Yrd Mat Sub Rec Matter Collected 352 | 184 103 65 . Remotely . | . . . . Salvage Created 422 | . 267 105 50 Parts 22 | . 11 10 1 Haulers Intercepted . | . . . . Recyclers Shooed . | . . . . Parts Field Recycled . | . . . . Retrieved Matter . | . . . . Parts Self-Destructed 8 | . . 8 . Prevented . | . . . . Kills | -11 -10 -10 -7 ------- Run | Yrd Mat Sub Rec Combat Hostiles Destroyed 14 | . 8 5 1 Guns 8 | . 6 1 1 AOE 6 | . 2 4 . Classes Destroyed 4 | . 2 1 1 Turret 2 | . . 2 . Swarmer 7 | . 3 4 . Grunt 6 | . 5 1 . Sentry 1 | . . . 1 Best Kill Streak 6 | . 3 6 1 Combat Bots Only 4 | . 3 4 1 Max Kills in Single Turn 3 | . 2 3 1 Gunslinging . | . . . . Exploded 3 | . 2 3 . Melee . | . . . . Uniques/NPCs Destroyed . | . . . . Combat | -11 -10 -10 -7 -------- Run | Yrd Mat Sub Rec Hostile Shots Fired 233 | . 36 59 138 Missed 90 | . 10 21 59 Damage Taken 1221 | . 310 311 600 Core 255 | . 26 47 182 Absorbed by Shields . | . . . . Core Remaining (%) 100 | 100 . . . Volleys Fired 49 | . 22 14 13 Largest 2 | . 2 2 2 Hottest 105 | . 80 80 105 Shots Fired 95 | . 44 25 26 Gun 81 | . 43 17 21 Cannon 11 | . . 6 5 Launcher 3 | . 1 2 . Special . | . . . . Kinetic 44 | . 18 12 14 Thermal 48 | . 25 11 12 Explosive 3 | . 1 2 . Electromagnetic . | . . . . Robot Hit Streak 15 | . 15 4 8 Robot Miss Streak 4 | . 4 4 2 Penetration Max . | . . . . Secondary Targets 2 | . 1 . 1 Max Gunslinging Chain 1 | . 1 . 1 Shots Hit Robots 67 | . 29 14 24 Core Hits 35 | . 16 13 6 Critical Kills . | . . . . Critical Parts Destroyed 1 | . 1 . . Critical Strikes 1 | . 1 . . Destroy 1 | . 1 . . Melee Attacks . | . . . . Impact . | . . . . Slashing . | . . . . Piercing . | . . . . Sneak Attacks . | . . . . Combat Hostiles . | . . . . Follow-up Attacks . | . . . . Damage Inflicted 1217 | . 431 417 369 Guns 708 | . 313 96 299 Cannons 156 | . . 86 70 Explosions 353 | . 118 235 . Melee . | . . . . Ramming . | . . . . Kinetic 338 | . 102 59 177 Thermal 526 | . 211 123 192 Explosive 353 | . 118 235 . Electromagnetic . | . . . . Impact . | . . . . Slashing . | . . . . Piercing . | . . . . Highest Corruption . | . . . . Average Corruption . | . . . . Corruption Purged . | . . . . Corruption Blocked . | . . . . Overload Shots . | . . . . Overflow Damage . | . . . . Projectiles . | . . . . Explosions . | . . . . Melee . | . . . . Knockbacks . | . . . . Impact . | . . . . Kinetic . | . . . . Secondary . | . . . . Self-Inflicted Damage . | . . . . Shots . | . . . . Rammed . | . . . . Targets Rammed . | . . . . Kicked . | . . . . Crushed . | . . . . Highest Temperature 399 | . 136 10 399 Average Temperature 101 | . 39 5 232 Received Heat Transfer 510 | . 120 198 192 Effects 2 | . . . 2 Shutdowns 1 | . . . 1 Damage (minor) 1 | . . . 1 Siege Activations . | . . . . Robots Corrupted . | . . . . Combat Hostiles . | . . . . Parts Fried . | . . . . Impact Corruptions . | . . . . Robots Melted . | . . . . Combat Hostiles . | . . . . Parts Melted 1 | . . . 1 Heat Transferred 1312 | . 593 296 423 Parts Sabotaged . | . . . . Parts Stolen . | . . . . Parts Stripped . | . . . . Power Chain Reactions . | . . . . Alert | -11 -10 -10 -7 ------- Run | Yrd Mat Sub Rec Peak Influence 290 | . 290 . 94 Initial 91 | . . . 91 Average 77 | . 76 . 85 Maximum Alert Level 1 | . 1 . . Low Security (%) 85 | . 84 . 100 Level 1 14 | . 15 . . Level 2 . | . . . . Level 3 . | . . . . Level 4 . | . . . . Level 5 . | . . . . High Security . | . . . . Max Security . | . . . . Squads Dispatched 2 | . 2 . . Investigation . | . . . . Extermination . | . . . . Reinforcement 2 | . 2 . . Assault . | . . . . Garrison . | . . . . Intercept . | . . . . Searches Triggered . | . . . . Construction Impeded . | . . . . Haulers Reinforced . | . . . . Active Scanning Responses . | . . . . Cargo Convoy Interrupts . | . . . . Stealth | -11 -10 -10 -7 --------- Run | Yrd Mat Sub Rec Distress Signals 1 | . 1 . . Communications Jammed . | . . . . Distress Signals . | . . . . Times Spotted 32 | . 21 9 2 Peak Tracking Total 6 | . 5 6 2 Tactical Retreats 3 | . 2 1 . Traps | -11 -10 -10 -7 ------- Run | Yrd Mat Sub Rec Traps Triggered . | . . . . Indirectly . | . . . . Trap Hack Attempts . | . . . . Triggered . | . . . . Disarmed . | . . . . Reprogrammed . | . . . . Reused . | . . . . Traps Extracted . | . . . . Installed . | . . . . Triggered . | . . . . Machines | -11 -10 -10 -7 ---------- Run | Yrd Mat Sub Rec Machines Disabled 2 | . . 2 . Max in Single Turn 2 | . . 2 . Machines Repaired . | . . . . Machines Dismantled . | . . . . Machines Sabotaged . | . . . . Overloaded Fab Kills . | . . . . Hacking | -11 -10 -10 -7 --------- Run | Yrd Mat Sub Rec Machines Accessed 2 | . 1 . 1 Terminals 1 | . 1 . . Fabricators . | . . . . Repair Stations . | . . . . Recycling Units 1 | . . . 1 Scanalyzers . | . . . . Garrison Access . | . . . . Total Hacks 7 | . 5 . 2 Successful 4 | . 2 . 2 Failed 3 | . 3 . . Catastrophic 1 | . 1 . . Database Lockouts . | . . . . Manual 5 | . 4 . 1 Terminals 5 | . 5 . . Fabricators . | . . . . Repair Stations . | . . . . Recycling Units 2 | . . . 2 Scanalyzers . | . . . . Garrison Access . | . . . . Terminal Hacks 1 | . 1 . . Terminal Index 1 | . 1 . . Fabricator Hacks . | . . . . Repair Station Hacks . | . . . . Recycling Unit Hacks 1 | . . . 1 Retrieve Components 1 | . . . 1 Scanalyzer . | . . . . Garrison Access Hacks . | . . . . Unauthorized Hacks 2 | . 1 . 1 Terminals 1 | . 1 . . Botnet 1 | . 1 . . Fabricators . | . . . . Repair Stations . | . . . . Recycling Units 1 | . . . 1 Recyclers 1 | . . . 1 Scanalyzers . | . . . . Garrison Access . | . . . . Data Cores Recovered . | . . . . Used . | . . . . Hacking Detections 1 | . 1 . . Full Trace Events . | . . . . Feedback Events . | . . . . Feedback Blocked . | . . . . Robot Schematics Acquired . | . . . . Robots Built . | . . . . Authchips . | . . . . Time . | . . . . Total Robot Build Rating . | . . . . Part Schematics Acquired . | . . . . Parts Built . | . . . . Authchips . | . . . . Time . | . . . . Total Part Build Rating . | . . . . Parts Repaired . | . . . . Time . | . . . . Parts Recycled . | . . . . Recycled Matter . | . . . . Retrieved Matter . | . . . . Retrieved Components 1 | . . . 1 Parts Scanalyzed . | . . . . Part Schematics Acquired . | . . . . Parts Damaged . | . . . . Bothacking | -11 -10 -10 -7 ------------ Run | Yrd Mat Sub Rec Used RIF Installer . | . . . . Robots Hacked . | . . . . Non-combat . | . . . . Combat . | . . . . Robot Hacks Applied . | . . . . Relay Couplers Released . | . . . . Fabnet Peak Effective % . | . . . . Robots Rewired . | . . . . Allies Hacked . | . . . . Hacks Repelled . | . . . . Allies | -11 -10 -10 -7 -------- Run | Yrd Mat Sub Rec Total Allies . | . . . . Largest Group . | . . . . Highest-Rated Group . | . . . . Highest-Rated Ally . | . . . . Total Orders . | . . . . Ally Attacks . | . . . . Total Damage . | . . . . Kills . | . . . . Allies Corrupted . | . . . . Allies Melted . | . . . . Intel | -11 -10 -10 -7 ------- Run | Yrd Mat Sub Rec Robot Analysis Total . | . . . . Derelict Logs Recovered 1 | . . 1 . Drone Launches . | . . . . Drone Recoveries . | . . . . Exploration | -11 -10 -10 -7 ------------- Run | Yrd Mat Sub Rec Turns Passed 2084 | . 1418 590 76 Spaces Moved 473 | 1 232 228 12 Core . | . . . . Treads 428 | . 188 228 12 Legs 45 | 1 44 . . Wheels . | . . . . Hover . | . . . . Flight . | . . . . Fastest Speed 120 | 120 120 240 240 Average Speed 222 | 120 205 240 240 Slowest Speed 240 | 120 240 240 240 Overloaded Moves . | . . . . Propulsion Burnouts . | . . . . Robots Hopped . | . . . . Cave-ins Triggered . | . . . . Exploration Rate (%) 15 | 2 40 16 3 Regions Visited 3 Branch Regions 2 Pre-discovered Areas . | . . . . Known Exits Taken . | . . . . Unknown Exits Taken 3 | 1 1 1 . Scrap Searched . | . . . . Spaces Dug . | . . . . Terrain Destroyed 17 | . 10 7 . Melee . | . . . . Projectile . | . . . . AOE 17 | . 10 7 . Terrain Rammed . | . . . . Walls Destroyed . | . . . . Machines Disabled . | . . . . Actions | -11 -10 -10 -7 --------- Run | Yrd Mat Sub Rec Total 1413 | . 1134 247 32 Wait 865 | . 865 . . Move 470 | . 231 227 12 Hop . | . . . . Pick Up 9 | . 5 3 1 Fast Attach 2 | . 2 . . Attach 5 | . . 1 4 Detach . | . . . . Swap 8 | . 4 2 2 Drop 5 | . 5 . . Fire 49 | . 22 14 13 Melee . | . . . . Ram . | . . . . Kick . | . . . . Crush . | . . . . Escape Stasis . | . . . . Rewire . | . . . . Trap . | . . . . Miscellaneous . | . . . . Route ------- -11/Scrapyard -10/Materials (discovered 2 exits: [*Mat] / [*Sub]) -10/Subcaves (discovered 2 exits: [*Mat] / *Rec) -7/Recycling History --------- Turn | Location | Event 1 | -11/Scrapyard | Discovered new exit (range 0) 1 | -11/Scrapyard | Entered Materials 300 | -10/Materials | Build established: Mutant 531 | -10/Materials | Discovered new exit (range 16) 1387 | -10/Materials | Discovered new exit (range 5) 1419 | -10/Materials | Entered Subcaves 1422 | -10/Subcaves | Learned Materials interactive machine intel 1582 | -10/Subcaves | Discovered new exit (range 9) 1629 | -10/Subcaves | Shifting Twisted Machinery released Sub. Laser 1660 | -10/Subcaves | Shifting Twisted Machinery released Hvy. Riot Gun 1945 | -10/Subcaves | Discovered new exit (range 13) 2009 | -10/Subcaves | Entered Recycling 2051 | -7/Recycling | Core integrity fell below 50% 2075 | -7/Recycling | Core integrity fell below 20% 2085 | -7/Recycling | Destroyed by Y-54 Guardian with Gatling Laser Last Messages --------------- 02024_ Current location identified: Recycling >>Retrieve(Components) Retrieving 1 components... Gatling Laser >>Trojan(Recyclers) Trojan loaded successfully. Testing... Recycler tracking enabled and active. 02026_ Acquired Gatling Laser. 02032_ Connecting with Recycling Unit... 02042_ Y-54 Guardian springs to life. 02047_ Lgt. Treads destroyed. 02060_ Imp. Heat Sink melted. 02060_ Y-54 Guardian destroyed. 02060_ Switching to secondary target: Y-54 Guardian. 02064_ Gatling Laser destroyed. 02067_ Battle Rifle destroyed. 02077_ Overheating: Hcp. Storage Unit damaged (-200). 02082_ Wheel destroyed. 02084_ Power failure, Lgt. Ion Engine shutdown. Map ----- +----------------------------------------------------+ | ?????????????????????????????? | | ?????????????????????????????? | | ?????????????????????????????? | | ?????????????????????????????? | | ?????????????????????????????? | | ?????????????????????????????? | | ?????????????????????????????? | | ?????????????????????????????? | | ?????????????????????????????? | | ?????????????????????????????? | | ????? ?????????????????????? | | ????? #????????????????????? | | ????? #????????????????????? | | ????# #????????????????????? | | ????# #????????????????????? | | ????# #????????????????????? | | ???? #????????????????????? | | ????# ????????????????????? | | ????# #????????????????????? | | ????# [#????????????????????? | | ????#Y %#????????????????????? | | ????# #????????????????????? | | ????# #????????????????????? | | ????# #????????????????????? | | ????# #????????????????????? | | ????#@ ###??????????????????? | | ????# ""#??????????????????? | | ????# Y"#??????????????????? | | ????# ""#??????????????????? | | ????# ###??????????????????? | | ????# #????????????????????? | | ????# #????????????????????? | | ????# #????????????????????? | | ????# #????????????????????? | | ????# #????????????????????? | | ????# #????????????????????? | | ????#####????????????????????? | | ?????????????????????????????? | | ?????????????????????????????? | | ?????????????????????????????? | | ?????????????????????????????? | | ?????????????????????????????? | | ?????????????????????????????? | | ?????????????????????????????? | | ?????????????????????????????? | | ?????????????????????????????? | | ?????????????????????????????? | | ?????????????????????????????? | | ?????????????????????????????? | | ?????????????????????????????? | +----------------------------------------------------+ Best States ------------- Heat Dissipation 25 Energy Generation 10 Energy Capacity 250 Matter Stores 300 Matter Capacity 300 Sight Range 16 Terrain Scan Density 10 Evasion (%) 55 Recoil Reduction 2 Item Schematics ----------------- None Robot Schematics ------------------ None Fabricated ------------ Nothing Alien Tech Used ----------------- None Achievements -------------- None Challenges ------------ None Game ------ Seed WaveCobblerChainsword Manual? 0 Play Time 00:10:56 Cumulative 128.2 hours Start 2024.08.10 @ 16:32:46 End 2024.08.10 @ 16:45:19 Sessions 1 Manual Loads 0 Difficulty Rogue Special Mode None Game No. 109 Rogue 109 Adventurer 0 Explorer 0 Win Type - Total 4 Types 2/0/2/0/0/0/0/0/0 Lore% 60 Gallery% 60 Achievement% 56 Wizard Run 0 Options --------- Layout 0 ASCII 0 Keyboard 0 Movement Arrows Keybinds 0 Fullscreen 2 Font 18/SmallcapsGlow Map View 76x50 Zoom Use 0% Tactical HUD 1 Map Filters NONE Filters NONE Steam 1 RUN: a23ca80b-f261-47f9-b322-e0c14b989d70